Workbook

Sheet Sales Revenue Report
C3: Sales Revenue
C4: XYZ, Inc.
C5: 2009 Sales
D7: Retail | E7: Wholesale | F7: Mail Order | G7: Total Sales
B8: Camping Gear
C9: Product | D9: 18,000 | E9: 24,000 | F9: 10,000 | G9: =IF(SUM(D9:F9),SUM(D9:F9),"") -> 52,000
C10: Product | D10: 14,000 | E10: 15,000 | F10: 9,000 | G10: =IF(SUM(D10:F10),SUM(D10:F10),"") -> 38,000
C11: Product | D11: 8,000 | E11: 11,000 | F11: 7,000 | G11: =IF(SUM(D11:F11),SUM(D11:F11),"") -> 26,000
C12: Product | D12: 4,000 | E12: 6,000 | F12: 6,000 | G12: =IF(SUM(D12:F12),SUM(D12:F12),"") -> 16,000
C13: Product | D13: 2,000 | E13: 3,000 | F13: 3,000 | G13: =IF(SUM(D13:F13),SUM(D13:F13),"") -> 8,000
C14: Total | D14: =IF(SUM(D9:D13),SUM(D9:D13),"") -> 46,000 | E14: =IF(SUM(E9:E13),SUM(E9:E13),"") -> 59,000 | F14: =IF(SUM(F9:F13),SUM(F9:F13),"") -> 35,000 | G14: =IF(SUM(G9:G13),SUM(G9:G13),"") -> 140,000
B16: Mountain Climbing
C17: Product | D17: 4,000 | E17: 8,000 | F17: 6,500 | G17: =IF(SUM(D17:F17),SUM(D17:F17),"") -> 18,500
C18: Product | D18: 7,000 | E18: 15,000 | F18: 9,000 | G18: =IF(SUM(D18:F18),SUM(D18:F18),"") -> 31,000
C19: Product | D19: 6,000 | E19: 11,000 | F19: 8,000 | G19: =IF(SUM(D19:F19),SUM(D19:F19),"") -> 25,000
C20: Product | D20: 3,000 | E20: 5,500 | F20: 4,500 | G20: =IF(SUM(D20:F20),SUM(D20:F20),"") -> 13,000
C21: Product | D21: 2,000 | E21: 3,500 | F21: 3,000 | G21: =IF(SUM(D21:F21),SUM(D21:F21),"") -> 8,500
C22: Total | D22: =IF(SUM(D17:D21),SUM(D17:D21),"") -> 22,000 | E22: =IF(SUM(E17:E21),SUM(E17:E21),"") -> 43,000 | F22: =IF(SUM(F17:F21),SUM(F17:F21),"") -> 31,000 | G22: =IF(SUM(G17:G21),SUM(G17:G21),"") -> 96,000
B24: Men's Clothing
C25: Product | D25: 16,000 | E25: 30,000 | F25: 15,000 | G25: =IF(SUM(D25:F25),SUM(D25:F25),"") -> 61,000
C26: Product | D26: 18,000 | E26: 32,000 | F26: 18,000 | G26: =IF(SUM(D26:F26),SUM(D26:F26),"") -> 68,000
C27: Product | D27: 24,000 | E27: 46,000 | F27: 38,000 | G27: =IF(SUM(D27:F27),SUM(D27:F27),"") -> 108,000
C28: Product | D28: 16,000 | E28: 32,000 | F28: 19,000 | G28: =IF(SUM(D28:F28),SUM(D28:F28),"") -> 67,000
C29: Product | D29: 8,000 | E29: 12,000 | F29: 10,000 | G29: =IF(SUM(D29:F29),SUM(D29:F29),"") -> 30,000
C30: Total | D30: =IF(SUM(D25:D29),SUM(D25:D29),"") -> 82,000 | E30: =IF(SUM(E25:E29),SUM(E25:E29),"") -> 152,000 | F30: =IF(SUM(F25:F29),SUM(F25:F29),"") -> 100,000 | G30: =IF(SUM(G25:G29),SUM(G25:G29),"") -> 334,000
B32: Women's Clothing
C33: Product | D33: 13,000 | E33: 26,000 | F33: 12,000 | G33: =IF(SUM(D33:F33),SUM(D33:F33),"") -> 51,000
C34: Product | D34: 17,000 | E34: 32,000 | F34: 15,000 | G34: =IF(SUM(D34:F34),SUM(D34:F34),"") -> 64,000
C35: Product | D35: 21,000 | E35: 42,000 | F35: 33,000 | G35: =IF(SUM(D35:F35),SUM(D35:F35),"") -> 96,000
C36: Product | D36: 11,000 | E36: 19,000 | F36: 17,500 | G36: =IF(SUM(D36:F36),SUM(D36:F36),"") -> 47,500
C37: Product | D37: 6,500 | E37: 11,500 | F37: 8,500 | G37: =IF(SUM(D37:F37),SUM(D37:F37),"") -> 26,500
C38: Total | D38: =IF(SUM(D33:D37),SUM(D33:D37),"") -> 68,500 | E38: =IF(SUM(E33:E37),SUM(E33:E37),"") -> 130,500 | F38: =IF(SUM(F33:F37),SUM(F33:F37),"") -> 86,000 | G38: =IF(SUM(G33:G37),SUM(G33:G37),"") -> 285,000
B40: Kids Corner
C41: Product | D41: 7,000 | E41: 13,000 | F41: 9,000 | G41: =IF(SUM(D41:F41),SUM(D41:F41),"") -> 29,000
C42: Product | D42: 8,500 | E42: 16,000 | F42: 11,000 | G42: =IF(SUM(D42:F42),SUM(D42:F42),"") -> 35,500
C43: Product | D43: 13,000 | E43: 22,000 | F43: 17,000 | G43: =IF(SUM(D43:F43),SUM(D43:F43),"") -> 52,000
C44: Product | D44: 6,000 | E44: 11,000 | F44: 9,000 | G44: =IF(SUM(D44:F44),SUM(D44:F44),"") -> 26,000
C45: Product | D45: 4,000 | E45: 7,000 | F45: 6,500 | G45: =IF(SUM(D45:F45),SUM(D45:F45),"") -> 17,500
C46: Total | D46: =IF(SUM(D41:D45),SUM(D41:D45),"") -> 38,500 | E46: =IF(SUM(E41:E45),SUM(E41:E45),"") -> 69,000 | F46: =IF(SUM(F41:F45),SUM(F41:F45),"") -> 52,500 | G46: =IF(SUM(G41:G45),SUM(G41:G45),"") -> 160,000
